bitfinex-derivatives/quotes_ETHF0:USTF0_20240905
["timestamp","ask_amount","ask_price","bid_price","bid_amount"]
[1725521713746,2.86,2416.7,2416.4,1.06239]
[1725521714845,2.86,2416.7,2416.5,0.28968]
[1725521715445,2.86,2416.7,2416.4,1.06239]
[1725521716744,2.86,2416.7,2416.4,0.7727]
[1725521718046,2.86,2416.7,2416.4,1.0624]
[1725521718552,2.86,2416.7,2416.4,0.6765]
[1725521718954,3.14966,2416.7,2416.1,3.5831]
[1725521719143,2.86,2416.5,2416.1,3.6]
[1725521719345,0.3795,2416.4,2416.3,0.2897]
[1725521719540,0.741,2416.4,2416.3,0.2897]
[1725521720550,2.86,2416.5,2416.4,0.2897]
[1725521720740,3.6196,2416.7,2416.4,0.2897]
[1725521722254,3.6196,2416.7,2416.1,3.6]
[1725521722454,3.6196,2416.7,2416.4,0.28968]
[1725521722651,3.6196,2416.7,2416.5,0.3932]
[1725521724258,3.6196,2416.7,2416.5,0.68288]
[1725521724650,3.6196,2416.7,2416.5,0.3932]
[1725521725750,3.6196,2416.7,2416.1,44.0078]
[1725521725954,3.6196,2416.7,2416.4,0.28969]
[1725521729056,3.90926,2416.7,2416.3,0.2897]
[1725521729257,3.6196,2416.7,2416.4,0.2897]
[1725521730060,1.19,2416.5,2416.4,0.2897]
[1725521733568,1.19,2416.5,2416.3,0.2897]
[1725521736866,1.19,2416.5,2416.2,0.68061]
[1725521737262,1.19,2416.3,2416.2,0.3909]
[1725521737457,1.19,2416.3,2415.9,0.3753]
[1725521737677,2.3183,2416.2,2415.9,0.7547]
[1725521737974,1.19,2416.0,2415.8,3.21401311]
[1725521738164,1.19,2415.9,2415.8,3.21401311]
[1725521739461,5.3292,2415.9,2415.8,3.21401311]
[1725521739871,1.19,2415.9,2415.8,3.21401311]
[1725521740073,2.86,2415.9,2415.8,3.21401311]
[1725521740770,6.9992,2415.9,2415.8,3.21401311]
[1725521745067,6.9992,2415.9,2415.8,0.00621311]
[1725521745270,7.28896,2415.9,2415.8,0.00621311]
[1725521748271,17.22116,2415.9,2415.8,0.00621311]
[1725521752770,0.2898,2415.6,2415.3,0.388]
[1725521753077,3.14982,2415.4,2415.3,0.388]
[1725521753476,3.52472,2415.4,2415.3,0.388]
[1725521753670,3.52472,2415.4,2415.0,0.67406]
[1725521753871,3.53093311,2415.4,2415.1,0.3673]
[1725521754574,3.24111311,2415.4,2415.1,0.3673]
[1725521754776,0.00621311,2415.4,2415.3,0.28983]
[1725521756078,0.00621311,2415.4,2415.2,0.28983]
[1725521756278,0.00621311,2415.4,2415.3,0.66263]
[1725521756977,0.00621311,2415.4,2415.3,0.3728]
[1725521758075,0.00621311,2415.4,2415.1,3.5751]
[1725521758471,0.00621311,2415.4,2415.2,0.3728]
[1725521760382,2.86,2415.3,2415.1,3.5751]
[1725521760576,2.86,2415.2,2415.1,3.5751]
[1725521760983,3.14984,2415.2,2415.1,3.5751]
[1725521761185,2.86,2415.2,2415.1,3.5751]
[1725521761385,2.86,2415.2,2415.1,0.3673]
[1725521761386,3.2534,2415.2,2415.1,0.3673]
[1725521761680,7.68405,2415.2,2415.0,0.00621311]
[1725521761875,0.3604,2415.1,2415.0,0.00621311]
[1725521762279,4.5012,2415.1,2415.0,0.00621311]
[1725521762974,0.20516877,2415.3,2415.0,0.00621311]
[1725521763178,2.86,2415.3,2415.0,0.00621311]
[1725521763382,2.86,2415.3,2415.1,0.28985]
[1725521763884,2.86,2415.3,2415.2,0.68174]
[1725521764490,2.86,2415.3,2415.2,1.04234]
[1725521765085,2.86,2415.3,2415.2,0.7525]
[1725521766978,2.86,2415.3,2415.2,1.04234]
[1725521769890,2.86,2415.3,2415.2,0.7525]
[1725521770277,2.86,2415.3,2415.0,0.29607311]
[1725521770278,7.3811,2415.3,2415.0,0.29607311]
[1725521770589,2.86,2415.2,2415.0,0.00621311]
[1725521770884,2.86,2415.2,2415.0,0.37011311]
[1725521771084,2.86,2415.2,2415.0,1.10831311]
[1725521771288,3.14985,2415.2,2415.0,0.37011311]
[1725521771485,0.3937,2415.1,2415.0,0.37011311]
[1725521772180,0.3937,2415.1,2415.0,0.00621311]
[1725521772387,4.82435,2415.1,2415.0,0.00621311]
[1725521774380,4.5345,2415.1,2415.0,0.00621311]
[1725521774581,0.3937,2415.1,2415.0,0.00621311]
[1725521775679,4.82435,2415.1,2415.0,0.00621311]
[1725521776887,4.5345,2415.1,2415.0,0.00621311]
[1725521777290,4.82435,2415.1,2415.0,0.00621311]
[1725521777886,0.28988,2415.0,2414.6,3.2078]
[1725521778185,2.86,2414.7,2414.6,3.5724]
[1725521780795,2.86,2414.7,2414.6,0.3646]
[1725521784895,3.1499,2414.7,2414.5,3.2078]
[1725521785191,0.3871,2414.6,2414.5,3.2078]
[1725521787696,2.86,2414.7,2414.4,0.00621311]
[1725521788292,2.86,2414.7,2414.5,0.28991]
[1725521788596,2.86,2414.7,2414.6,0.7508]
[1725521789693,2.86,2414.7,2414.4,0.29614311]
[1725521789886,2.86,2414.5,2414.4,0.00621311]
[1725521791896,2.86,2414.5,2414.4,0.29615311]
[1725521792503,2.86,2414.7,2414.4,0.00621311]
[1725521792705,2.86,2414.7,2414.5,0.28992]
[1725521792898,2.86,2414.7,2414.6,0.7726]
[1725521793800,2.86,2414.7,2414.6,1.06251]
[1725521794006,2.86,2414.7,2414.6,0.7726]
[1725521794192,2.86,2414.7,2414.5,0.28992]
[1725521794395,2.86,2414.7,2414.6,0.28991]
[1725521795499,2.86,2414.7,2414.5,0.28992]
[1725521796797,2.86,2414.7,2414.5,3.49772]
[1725521797904,2.86,2414.7,2414.5,3.2078]
[1725521798104,2.86,2414.7,2414.6,0.28991]
[1725521801195,2.86,2414.7,2414.5,0.28992]
[1725521802398,2.86,2414.7,2414.5,3.49772]
[1725521802802,2.86,2414.7,2414.5,0.28992]
[1725521803701,2.86,2414.7,2414.6,0.3628]
[1725521807603,3.1499,2414.7,2414.4,0.00621311]
[1725521807807,2.86,2414.5,2414.4,0.00621311]
[1725521808005,1.19,2414.5,2414.4,0.00621311]
[1725521809603,1.9474,2414.5,2414.4,0.00621311]
[1725521810503,2.23732,2414.5,2414.4,0.00621311]
[1725521810706,1.9474,2414.5,2414.4,0.00621311]
[1725521811511,2.23732,2414.5,2414.4,0.00621311]
[1725521811809,12.37892,2414.5,2414.4,0.00621311]
[1725521812010,14.04892,2414.5,2414.4,0.00621311]
[1725521813407,8.04892,2414.5,2414.4,0.00621311]
[1725521813915,3.6174,2414.5,2414.4,0.00621311]
[1725521816206,8.04892,2414.5,2414.4,0.00621311]
[1725521818705,0.28995,2414.3,2414.0,3.2078]
[1725521819014,3.2269,2414.2,2413.8,0.29]
[1725521819218,2.86,2414.0,2413.9,3.2078]
[1725521819513,2.86,2414.0,2413.8,0.29]
[1725521819712,2.86,2414.0,2413.9,0.29]
[1725521821015,2.86,2414.0,2413.9,3.4978]
[1725521821215,2.86,2414.0,2413.9,4.04899047]
[1725521821718,2.86,2414.0,2413.9,3.4978]
[1725521823219,7.0024,2414.0,2413.8,0.29001]
[1725521823518,7.0024,2414.0,2413.2,0.29008]
[1725521823519,0.29004,2413.6,2413.2,0.29008]
[1725521823713,2.86,2413.3,2413.2,3.85928]
[1725521823913,3.06688268,2413.3,2413.2,0.65148]
[1725521825516,3.06688268,2413.3,2413.2,0.3614]
[1725521826816,3.06688268,2413.3,2413.0,0.2901]
[1725521827014,3.06688268,2413.3,2413.0,0.6517]
[1725521827015,2.86,2413.1,2413.0,0.6517]
[1725521827414,2.86,2413.4,2413.3,0.29006]
[1725521827610,2.86,2413.4,2413.2,3.49788]
[1725521827816,2.86,2413.3,2413.2,3.49788]
[1725521828017,2.86,2413.3,2413.2,3.2078]
[1725521828416,2.86,2413.3,2413.2,3.49788]
[1725521832115,2.86,2413.3,2413.2,0.29008]
[1725521832517,2.86,2413.3,2413.2,0.68198]
[1725521833015,2.86,2413.3,2413.2,0.3919]
[1725521833928,2.86,2413.3,2413.2,0.68198]
[1725521834830,3.06304252,2413.3,2413.2,0.68198]
[1725521835721,3.2078,2414.0,2413.2,13.3959]
[1725521835934,0.00621311,2414.1,2413.9,0.28999]
[1725521836226,2.86621311,2414.1,2413.8,3.4978]
[1725521836931,2.86621311,2414.1,2413.8,3.2078]
[1725521836932,3.15618311,2414.1,2413.8,3.2078]
[1725521837124,2.86,2413.9,2413.8,3.2078]
[1725521837325,2.86,2413.9,2413.7,0.29002]
[1725521837634,2.86,2413.9,2413.8,3.2078]
[1725521839127,0.38141311,2414.1,2414.0,0.28998]
[1725521839128,0.00621311,2414.1,2414.0,0.28998]
[1725521839826,0.00621311,2414.1,2414.0,0.65478]
[1725521840927,0.00621311,2414.1,2414.0,0.3648]
[1725521841633,0.00621311,2414.1,2414.0,0.7237]
[1725521841825,0.00621311,2414.1,2414.0,1.01368]
[1725521842131,0.00621311,2414.1,2414.0,0.7237]
[1725521843827,0.00621311,2414.1,2414.0,1.01368]
[1725521844127,1.01243,2414.5,2414.0,1.01368]
[1725521844128,0.7225,2414.5,2414.4,0.28994]
[1725521844323,4.31520468,2414.8,2414.4,4.43153]
[1725521844324,5.04020468,2414.8,2414.4,4.43153]
[1725521844524,5.04020468,2414.8,2414.5,3.9459]
[1725521844727,5.04020468,2414.8,2414.5,3.2078]
[1725521844728,3.1499,2414.7,2414.5,3.2078]
[1725521844934,3.1499,2414.7,2414.4,3.2078]
[1725521844935,0.3815,2414.6,2414.4,3.2078]
[1725521846218,2.86,2414.5,2414.4,3.2078]
[1725521846732,0.28994,2414.4,2414.3,0.00621311]
[1725521846921,3.89344,2414.4,2414.3,0.00621311]
[1725521847120,8.03504,2414.4,2414.3,0.00621311]
[1725521847423,7.7451,2414.4,2414.3,0.00621311]
[1725521848331,0.28993,2414.5,2414.3,0.00621311]
[1725521848332,2.86,2414.5,2414.3,0.00621311]
[1725521849528,1.1096,2414.6,2414.3,0.00621311]
[1725521849529,2.86,2414.4,2414.3,0.00621311]
[1725521854028,4.25952,2414.6,2414.3,0.00621311]
[1725521855124,4.25952,2414.6,2414.3,0.38831311]
[1725521855434,3.2153,2414.6,2414.3,0.67825311]
[1725521855625,3.2153,2414.6,2414.4,0.3918]
[1725521857129,3.2153,2414.6,2414.3,0.00621311]
[1725521857332,2.86,2414.4,2414.3,0.00621311]
[1725521857730,3.2252,2414.4,2414.3,0.00621311]
[1725521858537,0.28996,2414.2,2413.8,3.2078]
[1725521858737,2.86,2413.9,2413.8,3.2078]
[1725521859337,2.86,2413.9,2413.7,0.68272]
[1725521861839,3.6045,2414.1,2413.8,3.2078]
[1725521862042,3.6045,2414.1,2413.8,3.5657]
[1725521862736,0.00621311,2414.7,2414.6,0.28991]
[1725521862931,0.00621311,2414.7,2414.5,3.49772]
[1725521863133,0.00621311,2414.7,2414.6,0.67481]
[1725521863333,0.00621311,2414.7,2414.6,1.06921]
[1725521864039,0.00621311,2414.7,2414.6,5.21081]
[1725521865641,3.06579738,2415.4,2415.1,0.28985]
[1725521865843,0.20579738,2415.4,2415.2,0.64833]
[1725521866435,3.2274,2415.5,2415.2,0.64834]
[1725521866734,2.86,2415.4,2415.2,0.3585]
[1725521868136,2.86,2415.4,2415.1,0.00621311]
[1725521868340,2.86,2415.2,2415.1,0.00621311]
[1725521869131,7.29064,2415.2,2415.1,0.00621311]
[1725521871140,13.29064,2415.2,2415.1,0.00621311]
[1725521873940,7.29064,2415.2,2415.1,0.00621311]
[1725521874144,13.29064,2415.2,2415.1,0.00621311]
[1725521874336,7.29064,2415.2,2415.1,0.00621311]
[1725521874739,13.29064,2415.2,2415.1,0.00621311]
[1725521875543,7.0008,2415.2,2415.1,0.00621311]
[1725521876340,7.29064,2415.2,2415.1,0.00621311]
[1725521876541,13.29064,2415.2,2415.1,0.00621311]
[1725521876741,7.29064,2415.2,2415.1,0.00621311]
[1725521877146,13.29064,2415.2,2415.1,0.00621311]
[1725521877341,0.28988,2414.9,2414.5,3.2078]
[1725521877542,2.86,2414.8,2414.5,3.2078]
[1725521877743,3.2257,2414.8,2414.5,3.2078]
[1725521878247,0.3745,2414.7,2414.5,3.2078]
[1725521880849,0.3745,2414.7,2414.1,0.3765]
[1725521880850,2.86,2414.6,2414.2,3.49776]
[1725521881057,2.86,2414.6,2414.2,3.85556]
[1725521881350,2.86,2414.6,2414.2,3.85555]
[1725521881742,2.86,2414.6,2414.3,0.28995]
[1725521882555,0.6556,2414.8,2414.5,3.49772]
[1725521882556,2.86,2414.8,2414.5,3.49772]
[1725521882745,10.89738,2415.4,2414.6,1.01881]
[1725521882746,2.86,2414.9,2414.6,1.01881]
[1725521883950,2.86,2414.9,2414.8,0.28989]
[1725521884252,2.86,2414.9,2414.8,3.49769]
[1725521884645,2.86,2415.1,2414.9,0.28987]
[1725521884849,2.86,2415.1,2415.0,0.3635]
[1725521886854,2.86,2415.1,2414.8,3.2078]
[1725521887149,2.86,2414.9,2414.7,0.3591]
[1725521887546,3.2394,2414.9,2414.7,0.3591]
[1725521888341,3.52928,2414.9,2414.7,0.3591]
[1725521888754,0.28989,2414.8,2414.7,0.3591]
[1725521888957,0.28989,2414.8,2414.6,3.2078]
[1725521889249,2.86,2414.7,2414.6,3.2078]
[1725521889548,3.1499,2414.7,2414.6,3.2078]
[1725521889752,0.28992,2414.6,2414.2,0.7301]
[1725521889956,2.86,2414.4,2414.2,0.7301]
[1725521892248,0.3882,2414.5,2414.2,1.02005]
[1725521892752,2.86,2414.6,2414.3,0.28995]
[1725521892953,2.86,2414.6,2414.3,0.28994]
[1725521893758,2.86,2414.6,2414.4,0.28993]
[1725521894249,2.86,2414.6,2414.5,0.3612]
[1725521899560,2.86,2414.6,2414.2,3.5788]
[1725521899762,3.14994,2414.4,2413.9,0.66739]
[1725521899964,2.86,2414.2,2414.1,3.2078]
[1725521906565,2.86,2414.2,2413.9,0.7671]
[1725521906763,2.86,2414.2,2414.1,3.2078]
[1725521908058,0.28998,2414.1,2413.9,3.2078]
[1725521908262,2.86,2414.0,2413.9,3.2078]
[1725521908473,3.2528,2414.0,2413.9,3.2078]
[1725521908668,3.54278,2414.0,2413.9,3.2078]
[1725521908865,3.54278,2414.0,2413.8,3.2078]
[1725521909060,3.54278,2414.0,2413.6,0.7637]
[1725521909359,3.2528,2414.0,2413.6,1.05373]
[1725521910560,2.86,2414.0,2413.6,0.7637]
[1725521910762,3.2528,2414.2,2413.8,3.2078]
[1725521910962,3.2528,2414.2,2413.9,0.28999]
[1725521911168,3.2528,2414.2,2413.9,0.3664]
[1725521913366,3.2528,2414.2,2413.9,3.5742]
[1725521914660,3.2528,2414.2,2413.9,3.86419]
[1725521916174,3.2528,2414.2,2413.9,3.5742]
[1725521918278,2.86,2414.0,2413.6,3.5989]
[1725521918580,0.3707,2413.9,2413.7,0.3692]
[1725521920371,0.7624,2413.9,2413.7,0.3692]
[1725521920877,0.7624,2413.9,2413.7,3.577]
[1725521921174,1.0524,2413.9,2413.7,0.3692]
[1725521921474,2.86,2413.8,2413.4,3.2078]
[1725521921666,2.86,2413.6,2413.4,3.5715]
[1725521921864,3.15004,2413.6,2413.4,3.5715]
[1725521922065,0.7754,2413.5,2413.4,3.5715]
[1725521922264,0.7754,2413.5,2413.4,3.2078]
[1725521923463,1.06544,2413.5,2413.4,3.2078]
[1725521925074,0.29006,2413.4,2413.2,0.3637]
[1725521925269,3.15008,2413.3,2413.0,3.2078]
[1725521925467,3.15008,2413.3,2413.0,3.5921]
[1725521925676,0.3834,2413.2,2413.0,3.5921]
[1725521926265,2.86,2413.3,2413.0,3.5921]
[1725521926473,4.31965,2413.5,2413.0,3.5921]
[1725521927881,4.111,2413.6,2413.4,3.2078]
[1725521928079,4.111,2413.6,2413.5,0.7616]
[1725521928281,3.15003,2413.7,2413.5,0.7616]
[1725521928883,0.29003,2413.6,2413.5,0.3823]
[1725521929181,0.67533,2413.6,2413.5,0.3823]
[1725521930681,0.29004,2413.5,2413.1,3.5756]
[1725521930871,0.29007,2413.3,2413.2,0.3891]
[1725521931079,0.67767,2413.4,2413.2,0.3891]
[1725521931278,0.3908,2413.3,2413.2,0.3891]
[1725521932886,3.54087,2413.3,2413.2,0.3891]
[1725521933095,0.29008,2413.2,2412.9,0.3878]
[1725521933386,0.29008,2413.2,2413.0,0.3627]
[1725521935185,2.86,2413.1,2413.0,0.3627]
[1725521938489,2.86,2413.1,2412.8,3.5934]
[1725521938692,0.7853,2413.0,2412.8,3.5934]
[1725521940988,2.86,2413.1,2412.8,3.5934]
[1725521941188,2.86,2413.1,2412.8,3.9747]
[1725521941389,2.86,2413.1,2412.8,4.26483]
[1725521941692,0.00621311,2413.2,2412.8,4.26483]
[1725521941888,0.00621311,2413.2,2413.1,3.2078]
[1725521945996,1.19621311,2413.2,2413.1,3.2078]
[1725521946690,1.19621311,2413.2,2413.1,3.49789]
[1725521947693,1.19621311,2413.2,2413.1,3.2078]
[1725521950895,1.19621311,2413.2,2413.0,0.3587]
[1725521950896,1.48629311,2413.2,2413.0,0.3587]
[1725521951095,1.19,2413.1,2413.0,0.3587]
[1725521952698,1.19,2413.1,2412.8,4.26483]
[1725521952699,0.29011,2413.0,2412.8,3.5934]
[1725521952896,1.19,2412.9,2412.8,3.2078]
[1725521958503,1.48012,2412.9,2412.8,3.2078]
[1725521958707,1.19,2412.9,2412.8,3.2078]
[1725521959007,1.48012,2412.9,2412.8,3.2078]
[1725521959305,1.19,2412.9,2412.8,3.2078]
[1725521963403,1.48012,2412.9,2412.8,3.2078]
[1725521964315,1.68704014,2412.9,2412.8,3.2078]
[1725521965313,5.83184014,2412.9,2412.4,0.29017]
[1725521965520,0.3584,2412.8,2412.5,0.382]
[1725521965702,0.64853,2412.8,2412.5,0.382]
[1725521965908,0.3817,2412.7,2412.5,0.382]
[1725521967114,1.19,2412.6,2412.5,0.382]
[1725521969318,1.19,2412.8,2412.6,0.29015]
[1725521969615,1.19,2412.8,2412.6,3.2078]
[1725521970819,1.19,2412.8,2412.6,3.49795]
[1725521972825,1.19,2412.8,2412.7,0.29014]
[1725521973022,1.19,2412.8,2412.7,0.84354433]
[1725521975034,1.19,2412.8,2412.7,0.55340433]
[1725521975225,1.19,2412.8,2412.7,0.84354433]
[1725521975829,1.19,2412.8,2412.7,0.29014]
[1725521976122,1.19,2412.8,2412.7,0.84345078]
[1725521977619,1.19,2412.8,2412.7,4.05125078]
[1725521978024,0.3681,2413.0,2412.9,0.29012]
[1725521978232,3.2078,2413.9,2413.0,0.72527]
[1725521978527,1.19,2413.5,2413.4,3.49786]
[1725521978730,1.19,2413.5,2413.4,4.05117078]
[1725521979231,0.00621311,2413.7,2413.4,3.76111078]
[1725521979431,0.00621311,2413.7,2413.6,0.29003]
[1725521979630,1.19621311,2413.7,2413.6,0.29003]
[1725521980635,1.19621311,2413.7,2413.4,3.49785]
[1725521980838,1.19,2413.5,2413.4,3.49785]
[1725521981328,1.19,2413.6,2413.5,0.29004]
[1725521983140,1.19,2413.6,2413.5,3.49784]
[1725521985728,1.19,2413.6,2413.5,3.2078]
[1725521986644,1.19,2413.6,2413.4,0.29005]
[1725521986836,1.19,2413.6,2413.5,3.2078]
[1725521987141,1.19,2413.6,2413.5,3.49784]
[1725521988139,0.00621311,2413.7,2413.6,0.29003]
[1725521988333,0.00621311,2413.7,2413.6,1.04893]
[1725521990546,1.19621311,2413.7,2413.6,1.04893]
[1725521991840,1.19621311,2413.7,2413.6,0.3757]
[1725521992048,1.48623311,2413.7,2413.6,0.3757]
[1725521992247,1.19621311,2413.7,2413.6,0.3757]
[1725521992839,1.48624311,2413.7,2413.5,3.2078]
[1725521993046,1.9539,2413.6,2413.5,3.2078]
[1725521993440,2.24393,2413.6,2413.2,3.50408311]
[1725521993644,1.19,2413.3,2413.2,0.00621311]
[1725521994141,1.19,2413.3,2413.2,3.21401311]
[1725521994437,1.85887,2413.3,2413.2,3.21401311]
[1725521994641,1.85887,2413.3,2413.2,0.00621311]
[1725521994841,6.00287,2413.3,2413.2,0.00621311]
[1725521996249,5.7128,2413.3,2413.2,0.00621311]
[1725521997753,1.5688,2413.3,2413.2,0.00621311]
[1725521997953,5.7128,2413.3,2413.2,0.00621311]
[1725522000052,1.5688,2413.3,2413.2,0.00621311]
[1725522000457,1.85887,2413.3,2413.2,0.00621311]
[1725522000750,6.00287,2413.3,2413.2,0.00621311]
[1725522001650,12.00287,2413.3,2413.2,0.00621311]
[1725522002154,0.29011,2413.0,2412.5,0.66265]
[1725522002354,1.19,2412.6,2412.5,0.66265]
[1725522002547,1.19,2412.6,2412.5,3.87045]
[1725522002755,1.19,2412.6,2412.5,3.49795]
[1725522002951,0.3916,2412.8,2412.5,3.49795]
[1725522003149,0.3735,2412.9,2412.5,3.2078]
[1725522003454,1.5635,2412.9,2412.8,3.2078]
[1725522003661,1.5635,2412.9,2412.8,3.49793]
[1725522003852,1.5635,2412.9,2412.8,3.2078]
[1725522004053,1.5635,2412.9,2412.8,3.49793]
[1725522004255,1.19,2412.9,2412.8,7.64273]
[1725522006451,1.19,2413.0,2412.8,7.3526]
[1725522006655,1.19,2413.0,2412.9,1.37742]
[1725522006849,1.19,2413.0,2412.9,5.52142]
[1725522010357,1.19,2413.0,2412.9,1.0873]
[1725522010665,1.19,2413.0,2412.9,0.64702]
[1725522011165,1.19,2413.0,2412.9,1.00302]
[1725522012264,1.19,2413.0,2412.9,1.38362]
[1725522013559,1.19,2413.0,2412.9,5.52762]
[1725522016370,7.3188,2413.6,2412.9,5.2375]
[1725522016567,3.9416,2413.6,2413.4,0.29005]
[1725522016761,3.9416,2413.6,2413.5,0.3838]
[1725522017070,5.1316,2413.6,2413.5,0.3838]
[1725522017259,5.42163,2413.6,2413.5,0.3838]
[1725522017459,5.1316,2413.6,2413.5,0.3838]
[1725522020271,0.00621311,2413.7,2413.5,0.3838]
[1725522020471,0.00621311,2413.7,2413.6,0.3721]
[1725522020767,1.19621311,2413.7,2413.6,0.66213]
[1725522023567,1.19621311,2413.7,2413.6,0.3721]
[1725522023867,1.19621311,2413.7,2413.6,0.66213]
[1725522024068,0.00621311,2413.7,2413.6,4.80533]
[1725522024473,0.00621311,2413.7,2413.6,5.35826854]
[1725522024678,0.00621311,2413.7,2413.6,11.35826854]
[1725522024879,0.5793388,2414.4,2413.7,0.72506]
[1725522025070,1.19,2414.3,2414.2,0.28996]
[1725522028889,1.19,2414.3,2414.1,3.49777]
[1725522029692,0.3898,2414.2,2413.6,3.21401311]
[1725522029998,1.19,2413.7,2413.6,3.21401311]
[1725522030193,1.19,2413.7,2413.6,3.50404311]
[1725522030699,0.7685,2413.9,2413.7,0.29001]
[1725522030700,1.19,2413.8,2413.7,0.29001]
[1725522030994,1.19,2414.0,2413.9,0.29]
[1725522031199,1.19,2414.0,2413.9,3.4978]
[1725522031400,0.3763,2414.1,2413.9,3.2078]
[1725522031603,0.3763,2414.1,2413.9,3.49779]
[1725522031604,1.19,2414.0,2413.9,3.49779]
[1725522032097,4.3190388,2414.4,2414.1,0.28996]
[1725522032301,1.19,2414.2,2414.1,0.28996]
[1725522033893,2.86,2414.2,2414.1,0.28996]
[1725522035998,2.86,2414.2,2413.9,3.2078]
[1725522036304,2.86,2414.0,2413.9,3.4978]
[1725522036605,0.3763,2414.3,2413.9,3.4978]
[1725522036606,2.86,2414.1,2413.9,3.4978]
[1725522037098,2.86,2414.1,2414.0,0.28998]
[1725522037598,2.86,2414.1,2413.9,3.49779]
[1725522037803,2.86,2414.1,2413.9,3.2078]
[1725522038103,0.3564,2414.0,2413.9,3.2078]
[1725522038293,3.5769,2414.0,2413.8,0.29]
[1725522038499,3.5769,2414.0,2413.7,0.29001]
[1725522038902,0.3921,2413.9,2413.6,3.21401311]
[1725522039106,0.3921,2413.9,2413.6,3.50404311]
[1725522040302,0.3921,2413.9,2413.7,0.29002]
[1725522040903,0.3921,2413.9,2413.8,0.29001]
[1725522041798,3.5769,2414.0,2413.9,0.29]
[1725522042201,0.3689,2414.1,2414.0,0.28998]
[1725522043206,0.3689,2414.1,2413.9,3.49779]
[1725522043406,0.3689,2414.1,2413.8,0.29]
[1725522043610,2.86,2414.0,2413.8,3.4978]
[1725522043798,0.3944,2413.9,2413.8,3.4978]
[1725522043996,0.775,2413.9,2413.8,3.4978]
[1725522044199,0.775,2413.9,2413.8,3.2078]
[1725522044600,0.775,2413.9,2413.8,3.49781]
[1725522045401,0.775,2413.9,2413.8,3.2078]
[1725522047102,0.775,2413.9,2413.7,0.29001]
[1725522047611,2.86,2414.0,2413.8,3.49781]
[1725522047916,0.3689,2414.1,2413.9,0.6599]
[1725522048115,0.3689,2414.1,2414.0,0.28998]
[1725522050219,2.86,2414.2,2414.0,0.28998]
[1725522050515,3.226,2414.2,2414.0,0.28998]
[1725522050816,3.226,2414.2,2414.1,0.28997]
[1725522051008,3.226,2414.2,2413.9,1.1189]
[1725522051209,3.226,2414.2,2414.0,0.28998]
[1725522054009,1.19,2414.1,2414.0,0.28998]
[1725522054408,0.00621311,2414.5,2414.2,0.28996]
[1725522054612,1.19,2414.4,2414.3,0.68065]
[1725522056207,1.19,2414.4,2414.3,0.3907]
[1725522059314,1.19,2414.4,2414.2,0.28995]
[1725522059617,1.19,2414.3,2414.2,0.28995]
[1725522059815,1.39522341,2414.3,2414.0,0.64598]
[1725522060115,1.19,2414.1,2414.0,1.02648]
[1725522060510,1.19,2414.2,2414.1,0.28997]
[1725522061519,1.19,2414.4,2414.1,0.28997]
[1725522061724,1.19,2414.4,2414.0,0.7365]
[1725522062022,1.19,2414.4,2414.2,0.28995]
[1725522062413,1.19,2414.4,2414.3,0.3717]
[1725522062609,1.19,2414.4,2414.3,0.66165]
[1725522066221,1.19,2414.4,2414.0,0.3805]
[1725522066424,1.19,2414.4,2414.0,4.24748]
[1725522066425,1.19,2414.2,2414.0,4.24748]
[1725522066723,1.47997,2414.2,2413.8,0.29]
[1725522066927,1.19,2414.0,2413.8,0.29]
[1725522067327,1.47999,2414.0,2413.7,0.3786]
[1725522067622,0.29002,2413.7,2413.6,0.00621311]
[1725522067828,1.19,2413.8,2413.1,0.3786]
[1725522067829,0.29004,2413.5,2413.1,0.3786]
[1725522068021,1.19,2413.2,2413.1,3.2078]
[1725522068220,1.19,2413.2,2413.1,3.76011948]
[1725522068418,1.19,2413.2,2413.1,3.2078]
[1725522069025,1.19,2413.2,2412.8,0.66872]
[1725522069225,1.19,2413.2,2412.9,3.2078]
[1725522069226,0.00621311,2413.2,2412.9,3.2078]
[1725522069431,1.19,2413.0,2412.9,3.2078]
[1725522069628,1.19,2413.0,2412.6,44.66044]
[1725522070124,3.2328,2413.0,2412.7,0.29014]
[1725522070429,3.2328,2413.0,2412.9,3.2078]
[1725522070815,3.2328,2413.0,2412.7,0.84262974]
[1725522071519,3.2328,2413.0,2412.9,3.2078]
[1725522072217,3.44515233,2413.0,2412.7,0.55248974]
[1725522073312,3.44515233,2413.0,2412.7,0.84262974]
[1725522073725,3.44515233,2413.0,2412.7,0.55248974]
[1725522076121,0.3628,2413.0,2412.7,0.84262974]
[1725522076328,0.3628,2413.0,2412.8,0.29013]
[1725522076525,2.87621311,2413.2,2412.8,0.29013]
[1725522076728,0.00621311,2413.2,2413.0,0.2901]
[1725522076923,0.00621311,2413.2,2413.1,0.29009]
[1725522077328,0.00621311,2413.2,2413.1,4.43409]
[1725522078221,3.16005,2413.5,2413.0,0.3557]
[1725522078422,3.16005,2413.5,2413.0,0.6458]
[1725522079327,0.29006,2413.4,2413.0,0.36191311]
[1725522079527,2.87,2413.3,2413.0,0.00621311]
[1725522079727,0.3889,2413.2,2413.0,0.00621311]
[1725522083538,0.67898,2413.2,2413.0,0.00621311]
[1725522083838,3.36269942,2413.1,2413.0,0.00621311]
[1725522084830,3.07260942,2413.1,2413.0,0.00621311]